bitfinex-derivatives/quotes_BTCF0:USTF0_20251209
["timestamp","ask_amount","ask_price","bid_price","bid_amount"]
[1765246931156,0.07525,90288.0,90287.0,0.06036]
[1765246931470,0.51985805,90288.0,90287.0,0.003]
[1765246931762,0.51985805,90288.0,90280.0,0.00016613]
[1765246931763,0.0688356,90281.0,90280.0,0.00016613]
[1765246931954,0.09344365,90281.0,90280.0,0.00016613]
[1765246933056,0.09344365,90281.0,90274.0,0.0110763]
[1765246933057,0.0850563,90275.0,90274.0,0.0667763]
[1765246933359,0.10966435,90275.0,90274.0,0.0667763]
[1765246934862,0.11166435,90275.0,90274.0,0.0667763]
[1765246935262,0.10058805,90275.0,90274.0,0.0667763]
[1765246935465,0.08198,90275.0,90274.0,0.0667763]
[1765246937856,0.0930563,90275.0,90274.0,0.0557]
[1765246939069,0.0930563,90275.0,90274.0,0.02791]
[1765246939457,0.0930563,90275.0,90274.0,0.0557]
[1765246941969,0.08198,90275.0,90274.0,0.0557]
[1765246942161,0.06471,90275.0,90274.0,0.4257]
[1765246944870,0.06471,90275.0,90274.0,0.0557]
[1765246946473,0.06471,90275.0,90274.0,0.02791]
[1765246946661,0.0110773,90267.0,90266.0,0.0678474]
[1765246946868,0.0672573,90267.0,90266.0,0.4178474]
[1765246947970,0.0732573,90267.0,90266.0,0.4178474]
[1765246948358,0.06218,90267.0,90266.0,0.4178474]
[1765246956578,0.06218,90267.0,90266.0,0.37898]
[1765246956875,0.06218,90267.0,90266.0,0.40677]
[1765246963485,0.006,90267.0,90266.0,0.40677]
[1765246963780,0.03311,90267.0,90266.0,0.40677]
[1765246963983,0.06286,90267.0,90266.0,0.40677]
[1765246975591,0.08764134,90267.0,90266.0,0.40677]
[1765246977593,0.05440227,90253.0,90252.0,0.05929]
[1765246977788,0.07918361,90253.0,90252.0,0.45929]
[1765246978989,0.07918361,90253.0,90252.0,0.46029]
[1765246980186,0.08018361,90253.0,90252.0,0.46029]
[1765246981283,0.06910461,90253.0,90252.0,0.4713691]
[1765246981591,0.08332561,90253.0,90252.0,0.0713691]
[1765246981894,0.05394561,90253.0,90252.0,0.4913691]
[1765246982983,0.02574561,90253.0,90252.0,0.4913691]
[1765246983889,0.05394561,90253.0,90252.0,0.4913691]
[1765246984290,0.0292,90253.0,90252.0,0.4913691]
[1765246984491,0.001,90253.0,90252.0,0.4913691]
[1765246985993,0.001,90253.0,90252.0,0.5038991]
[1765246986492,0.05858,90253.0,90252.0,0.4913691]
[1765246991499,0.0292,90253.0,90252.0,0.4913691]
[1765246991802,0.001,90253.0,90252.0,0.5055291]
[1765246994700,0.05779,90253.0,90252.0,0.4913691]
[1765246996404,0.001,90253.0,90252.0,0.5055291]
[1765246996806,0.02818,90253.0,90252.0,0.5055291]
[1765246998798,0.05779,90253.0,90252.0,0.5055291]
[1765246999004,0.05779,90253.0,90252.0,0.4913691]
[1765246999705,0.068869,90253.0,90252.0,0.4913691]
[1765247001304,0.02818,90253.0,90252.0,0.4913691]
[1765247001695,0.001,90253.0,90252.0,0.5055291]
[1765247002103,0.0382567,90272.0,90271.0,0.0690368]
[1765247002302,0.0678663,90275.0,90274.0,0.05796]
[1765247002499,0.0926115,90275.0,90274.0,0.47796]
[1765247002699,0.05679,90275.0,90274.0,0.47796]
[1765247003600,0.06379,90275.0,90274.0,0.47796]
[1765247004001,0.06579,90275.0,90274.0,0.18796]
[1765247006006,0.08287,90275.0,90274.0,0.05796]
[1765247006900,0.03618,90275.0,90274.0,0.4390364]
[1765247007701,0.06579,90275.0,90274.0,0.4390364]
[1765247012802,0.06579,90275.0,90274.0,0.16796]
[1765247015612,0.09084603,90275.0,90274.0,0.16796]
[1765247017808,0.009,90275.0,90274.0,0.46796]
[1765247019401,0.011074,90294.0,90289.0,0.0690346]
[1765247019610,0.011074,90294.0,90289.0,0.4590346]
[1765247019810,0.02615331,90290.0,90289.0,0.4590346]
[1765247021017,0.05333331,90290.0,90289.0,0.4590346]
[1765247021314,0.02615331,90290.0,90289.0,0.4590346]
[1765247021516,0.02615331,90290.0,90289.0,0.4600346]
[1765247021917,0.00110755,90290.0,90289.0,0.4600346]
[1765247022314,0.00016613,90299.0,90298.0,0.05796]
[1765247022513,0.05510613,90299.0,90298.0,0.46796]
[1765247022713,0.08014222,90299.0,90298.0,0.46796]
[1765247023813,0.05238222,90299.0,90298.0,0.4794861]
[1765247024014,0.00016613,90299.0,90298.0,0.4794861]
[1765247027419,0.05719613,90299.0,90298.0,0.2794861]
[1765247027621,0.02943613,90299.0,90298.0,0.2794861]
[1765247027817,0.05719613,90299.0,90298.0,0.2794861]
[1765247028114,0.02943613,90299.0,90298.0,0.2794861]
[1765247028417,0.05719613,90299.0,90298.0,0.2794861]
[1765247029321,0.00016613,90299.0,90298.0,0.2794861]
[1765247032022,0.05719613,90299.0,90298.0,0.2794861]
[1765247032317,0.00016613,90299.0,90298.0,0.2794861]
[1765247033221,0.02943613,90299.0,90298.0,0.2794861]
[1765247034016,0.00016613,90299.0,90298.0,0.2794861]
[1765247034216,0.05719613,90299.0,90298.0,0.2794861]
[1765247034719,0.0681045,90290.0,90289.0,0.1892071]
[1765247034925,0.0681045,90290.0,90289.0,0.10953]
[1765247035114,0.0681045,90290.0,90289.0,0.05953]
[1765247036014,0.05703,90281.0,90280.0,0.18937323]
[1765247036217,0.05703,90281.0,90280.0,0.05969613]
[1765247037610,0.05703,90281.0,90280.0,0.48835352]
[1765247038520,0.0681051,90286.0,90285.0,0.05953]
[1765247038719,0.0681051,90286.0,90285.0,0.41953]
[1765247039724,0.0681051,90286.0,90285.0,0.42053]
[1765247040733,0.0681051,90286.0,90285.0,0.42453]
[1765247041226,0.0681051,90286.0,90285.0,0.03486]
[1765247041532,0.5131022,90286.0,90285.0,0.005]
[1765247042525,0.5131022,90286.0,90280.0,0.00016613]
[1765247042526,0.0678456,90281.0,90280.0,0.00016613]
[1765247042730,0.4828427,90281.0,90280.0,0.00016613]
[1765247043433,0.0678474,90266.0,90265.0,0.00110786]
[1765247043635,0.0678474,90266.0,90265.0,0.05832786]
[1765247045324,0.0688474,90266.0,90265.0,0.05832786]
[1765247046031,0.0688474,90266.0,90265.0,0.02869786]
[1765247046937,0.0688474,90266.0,90265.0,0.05832786]
[1765247051831,0.0688474,90266.0,90265.0,0.02869786]
[1765247052537,0.0688474,90266.0,90265.0,0.00110786]
[1765247054026,0.0688474,90266.0,90256.0,0.00016613]
[1765247054027,0.0686285,90257.0,90256.0,0.00016613]
[1765247054331,0.4486285,90257.0,90256.0,0.00016613]
[1765247055337,0.0686305,90241.0,90240.0,0.05836816]
[1765247056633,0.0716305,90241.0,90240.0,0.05836816]
[1765247057838,0.0736305,90241.0,90240.0,0.05836816]
[1765247058637,0.0736305,90241.0,90240.0,0.48836816]
[1765247059435,0.0448005,90241.0,90240.0,0.48836816]
[1765247060143,0.0736305,90241.0,90240.0,0.48836816]
[1765247060642,0.0706305,90241.0,90240.0,0.48836816]
[1765247060843,0.0736305,90241.0,90240.0,0.48836816]
[1765247061035,0.0716305,90241.0,90240.0,0.42836816]
[1765247061236,0.0726305,90241.0,90240.0,0.42836816]
[1765247061436,0.0150805,90241.0,90240.0,0.44221816]
[1765247062046,0.0726305,90241.0,90240.0,0.42836816]
[1765247062240,0.0696305,90241.0,90240.0,0.42836816]
[1765247062544,0.06155,90241.0,90240.0,0.42836816]
[1765247062735,0.06155,90241.0,90240.0,0.44221816]
[1765247062736,0.0150805,90241.0,90240.0,0.44221816]
[1765247062937,0.0726305,90241.0,90240.0,0.42836816]
[1765247063131,0.0438005,90241.0,90240.0,0.42836816]
[1765247063846,0.0696305,90241.0,90240.0,0.42836816]
[1765247064050,0.0726305,90241.0,90240.0,0.42836816]
[1765247064542,0.004,90241.0,90240.0,0.42836816]
[1765247064734,0.003,90241.0,90240.0,0.44221816]
[1765247064936,0.004,90241.0,90240.0,0.44221816]
[1765247065339,0.001,90241.0,90240.0,0.44221816]
[1765247065538,0.004,90241.0,90240.0,0.44221816]
[1765247068846,0.03272,90241.0,90240.0,0.44221816]
[1765247069145,0.06155,90241.0,90240.0,0.42836816]
[1765247072949,0.004,90241.0,90240.0,0.44221816]
[1765247073344,0.03272,90241.0,90240.0,0.44221816]
[1765247073545,0.06155,90241.0,90240.0,0.42836816]
[1765247084554,0.004,90241.0,90240.0,0.44196816]
[1765247084754,0.03155,90241.0,90240.0,0.44196816]
[1765247086458,0.05888,90241.0,90240.0,0.44196816]
[1765247088562,0.05888,90241.0,90240.0,0.42836816]
[1765247091153,0.004,90241.0,90240.0,0.44196816]
[1765247091864,0.03155,90241.0,90240.0,0.44196816]
[1765247092159,0.004,90241.0,90240.0,0.44196816]
[1765247093263,0.03155,90241.0,90240.0,0.44196816]
[1765247093965,0.05888,90241.0,90240.0,0.42836816]
[1765247095658,0.08422781,90241.0,90240.0,0.42836816]
[1765247095857,0.05888,90241.0,90240.0,0.42836816]
[1765247098869,0.08422179,90241.0,90240.0,0.42836816]
[1765247099876,0.05888,90241.0,90240.0,0.42836816]
[1765247103172,0.004,90241.0,90240.0,0.44170816]
[1765247103371,0.06279,90241.0,90240.0,0.42836816]
[1765247106468,0.004,90241.0,90240.0,0.44196816]
[1765247115280,0.06309,90241.0,90240.0,0.05836816]
[1765247115580,0.0884388,90241.0,90240.0,0.05836816]
[1765247116773,0.0884388,90241.0,90240.0,0.48836816]
[1765247117083,0.0584988,90241.0,90240.0,0.48836816]
[1765247118781,0.0884388,90241.0,90240.0,0.48836816]
[1765247119178,0.0884388,90241.0,90240.0,0.05836816]
[1765247120181,0.0884388,90241.0,90240.0,0.03012816]
[1765247120383,0.0884388,90241.0,90213.0,0.0567]
[1765247120384,0.05909,90214.0,90213.0,0.0567]
[1765247120571,0.09553026,90214.0,90213.0,0.0567]
[1765247120774,0.09553026,90214.0,90213.0,0.02854]
[1765247120976,0.0876349,90205.0,90204.0,0.18639736]
[1765247121179,0.11299136,90205.0,90204.0,0.3967]
[1765247121374,0.08773813,90205.0,90204.0,0.3967]
[1765247122495,0.08773813,90205.0,90204.0,0.40825872]
[1765247122683,0.07227813,90205.0,90204.0,0.40825872]
[1765247122986,0.07227813,90205.0,90204.0,0.41934372]
[1765247123676,0.07627813,90205.0,90204.0,0.41934372]
[1765247124688,0.03525323,90205.0,90204.0,0.41934372]
[1765247124987,0.00610323,90205.0,90204.0,0.41934372]
[1765247125792,0.00510323,90205.0,90204.0,0.41934372]
[1765247125984,0.00110323,90205.0,90204.0,0.41934372]
[1765247126184,0.00410323,90205.0,90204.0,0.41934372]
[1765247126781,0.08065323,90205.0,90204.0,0.0567]
[1765247126988,0.070176,90196.0,90195.0,0.05686623]
[1765247127182,0.070176,90196.0,90195.0,0.19686623]
[1765247127379,0.070176,90196.0,90195.0,0.20875294]
[1765247127782,0.070176,90196.0,90195.0,0.06875294]
[1765247128292,0.071176,90196.0,90195.0,0.06875294]
[1765247128990,0.071176,90196.0,90195.0,0.49875294]
[1765247129380,0.072176,90196.0,90195.0,0.49875294]
[1765247143296,0.002,90196.0,90195.0,0.49875294]
[1765247143686,0.00010323,90205.0,90204.0,0.078795]
[1765247144000,0.00010323,90205.0,90204.0,0.468795]
[1765247151089,0.0110832,90220.0,90213.0,0.0671939]
[1765247151296,0.0110832,90220.0,90213.0,0.4171939]
[1765247151489,0.01691,90228.0,90213.0,0.4171939]
[1765247151490,0.0110821,90228.0,90213.0,0.4171939]
[1765247151699,0.0110816,90232.0,90220.0,0.0157]
[1765247152001,0.05609,90231.0,90230.0,0.05611]
[1765247152206,0.05609,90231.0,90230.0,0.41611]
[1765247153118,0.05709,90231.0,90230.0,0.41611]
[1765247153613,0.05709,90231.0,90230.0,0.4271918]
[1765247154518,0.05909,90231.0,90230.0,0.4271918]
[1765247155223,0.003,90231.0,90230.0,0.4271918]
[1765247155618,0.06733693,90240.0,90239.0,0.05611]
[1765247155925,0.09265062,90240.0,90239.0,0.05611]
[1765247156922,0.10956062,90240.0,90239.0,0.05611]
[1765247158125,0.11056062,90240.0,90239.0,0.05611]
[1765247158312,0.11256062,90240.0,90239.0,0.05611]
[1765247159323,0.11256062,90240.0,90239.0,0.06734715]
[1765247160615,0.11256062,90240.0,90239.0,0.05611]
[1765247160813,0.11256062,90240.0,90239.0,0.02859]
[1765247161012,0.11256062,90240.0,90239.0,0.06758637]
[1765247161219,0.09565062,90240.0,90239.0,0.45758637]
[1765247161423,0.05925623,90240.0,90239.0,0.45758637]
[1765247162924,0.07562623,90240.0,90239.0,0.45758637]
[1765247165013,0.05925623,90240.0,90239.0,0.45758637]
[1765247166420,0.07562623,90240.0,90239.0,0.45758637]
[1765247166616,0.07562623,90240.0,90239.0,0.44611]
[1765247167821,0.07562623,90240.0,90239.0,0.39]
[1765247168325,0.07562623,90240.0,90239.0,0.41787]
[1765247168925,0.07562623,90240.0,90239.0,0.44765]
[1765247170328,0.00316623,90240.0,90239.0,0.4587307]
[1765247170523,0.03083623,90240.0,90239.0,0.4587307]
[1765247170730,0.05942623,90240.0,90239.0,0.44765]
[1765247171526,0.07579623,90240.0,90239.0,0.44765]
[1765247173825,0.05942623,90240.0,90239.0,0.44765]
[1765247177735,0.07714623,90240.0,90239.0,0.44765]
[1765247179235,0.10250128,90240.0,90239.0,0.44765]
[1765247184737,0.08478128,90240.0,90239.0,0.44765]
[1765247187833,0.10250128,90240.0,90239.0,0.44765]
[1765247189436,0.02852128,90240.0,90239.0,0.44765]
[1765247189742,0.08355128,90240.0,90239.0,0.44765]
[1765247190936,0.08155128,90240.0,90239.0,0.44765]
[1765247191528,0.08255128,90240.0,90239.0,0.44765]
[1765247191842,0.08155128,90240.0,90239.0,0.44765]
[1765247192139,0.08255128,90240.0,90239.0,0.44765]
[1765247193237,0.05518128,90240.0,90239.0,0.44765]
[1765247193439,0.08255128,90240.0,90239.0,0.09765]
[1765247193638,0.10027128,90240.0,90239.0,0.05765]
[1765247193943,0.10027128,90240.0,90239.0,0.44765]
[1765247196833,0.10027128,90240.0,90239.0,0.4587307]
[1765247198238,0.08255128,90240.0,90239.0,0.4587307]
[1765247202847,0.05985221,90262.0,90259.0,0.02798]
[1765247203045,0.05287961,90261.0,90260.0,0.05779]
[1765247203246,0.05287961,90261.0,90260.0,0.40779]
[1765247203446,0.08070961,90261.0,90260.0,0.40779]
[1765247203947,0.00016623,90270.0,90264.0,0.0688677]
[1765247204250,0.00016623,90270.0,90264.0,0.4588677]
[1765247206249,0.00016623,90270.0,90269.0,0.0688671]
[1765247206447,0.00016623,90270.0,90269.0,0.4388671]
[1765247207248,0.00116623,90270.0,90269.0,0.4388671]
[1765247208547,0.05649623,90270.0,90269.0,0.4388671]
[1765247208757,0.00116623,90270.0,90269.0,0.4388671]
[1765247214351,0.05533,90285.0,90284.0,0.0688652]
[1765247214553,0.07433755,90290.0,90289.0,0.0688646]
[1765247214752,0.07433755,90290.0,90289.0,0.4288646]
[1765247214753,0.05643755,90290.0,90289.0,0.4288646]
[1765247217060,0.05643755,90290.0,90289.0,0.41779]
[1765247217262,0.05643755,90290.0,90289.0,0.42279]
[1765247217562,0.07433755,90290.0,90289.0,0.18279]
[1765247219256,0.07433755,90290.0,90289.0,0.06279]
[1765247219462,0.07433755,90290.0,90289.0,0.46279]
[1765247219862,0.07433755,90290.0,90289.0,0.19279]
[1765247220371,0.05643755,90290.0,90289.0,0.48279]
[1765247220566,0.00110755,90290.0,90289.0,0.48279]
[1765247220866,0.00016613,90299.0,90298.0,0.0688635]
[1765247221068,0.00016613,90299.0,90298.0,0.4688635]
[1765247221458,0.07323,90310.0,90309.0,0.0688622]
[1765247221763,0.03005724,90315.0,90314.0,0.0589]
[1765247221968,0.00110724,90315.0,90314.0,0.4389]
[1765247222568,0.05833724,90315.0,90314.0,0.0789]
[1765247223367,0.05833724,90315.0,90314.0,0.4189]
[1765247224770,0.05833724,90315.0,90314.0,0.1689]
[1765247224961,0.05833724,90315.0,90314.0,0.2489]
[1765247226658,0.06940864,90315.0,90314.0,0.2489]
[1765247226864,0.08689864,90315.0,90314.0,0.02935]
[1765247227074,0.0683025,90306.0,90305.0,0.05906613]
[1765247227273,0.0683025,90306.0,90305.0,0.17906613]
[1765247228476,0.05723,90306.0,90305.0,0.19013873]
[1765247228677,0.05723,90306.0,90305.0,0.44013873]
[1765247228873,0.05723,90306.0,90305.0,0.07013873]
[1765247229069,0.05723,90306.0,90305.0,0.17013873]
[1765247229268,0.05723,90306.0,90305.0,0.17113873]
[1765247229667,0.05723,90306.0,90305.0,0.17313873]
[1765247230877,0.04754724,90315.0,90314.0,0.0404215]
[1765247231068,0.00110724,90315.0,90314.0,0.4299715]
[1765247231664,0.00016613,90324.0,90323.0,0.0699704]
[1765247231874,0.07472,90336.0,90335.0,0.0589]
[1765247232079,0.09984233,90336.0,90335.0,0.0589]
[1765247233375,0.10284233,90336.0,90335.0,0.0589]
[1765247235176,0.10284233,90336.0,90335.0,0.4089]
[1765247235866,0.07772,90336.0,90335.0,0.4089]
[1765247236280,0.07472,90336.0,90335.0,0.4089]
[1765247236468,0.07672,90336.0,90335.0,0.4089]
[1765247238282,0.002,90336.0,90335.0,0.419969]
[1765247239477,0.00110694,90340.0,90339.0,0.0680485]
[1765247239677,0.00110694,90340.0,90339.0,0.4480485]
[1765247240668,0.00210694,90340.0,90339.0,0.4480485]
[1765247242182,0.00010999,90345.0,90344.0,0.0680479]
[1765247242371,0.0399258,90362.0,90361.0,0.05698]
[1765247242680,0.0399258,90362.0,90361.0,0.42698]
[1765247242681,0.09330743,90362.0,90361.0,0.42698]
[1765247243280,0.05712,90353.0,90352.0,0.18650382]
[1765247243586,0.0681858,90361.0,90360.0,0.05698]
[1765247243770,0.0681858,90361.0,90360.0,0.40698]
[1765247244280,0.05712,90361.0,90360.0,0.40698]
[1765247245485,0.0120657,90362.0,90361.0,0.05698]
[1765247245683,0.0110657,90362.0,90361.0,0.42698]
[1765247245978,0.06502478,90362.0,90361.0,0.42698]
[1765247246570,0.09328478,90362.0,90361.0,0.42698]
[1765247246772,0.09428478,90362.0,90361.0,0.42698]
[1765247246976,0.05495908,90362.0,90361.0,0.42698]
[1765247248278,0.08321908,90362.0,90361.0,0.42698]
[1765247254781,0.08321908,90362.0,90361.0,0.45698]
[1765247255784,0.08321908,90362.0,90361.0,0.29698]
[1765247256087,0.05712,90353.0,90352.0,0.32709444]
[1765247256286,0.0681861,90359.0,90358.0,0.0680461]
[1765247256584,0.0681861,90359.0,90358.0,0.4680461]
[1765247257183,0.05712,90359.0,90358.0,0.4680461]
[1765247257388,0.0681856,90363.0,90362.0,0.0680457]
[1765247257579,0.09330682,90363.0,90362.0,0.4180457]
[1765247258886,0.09530682,90363.0,90362.0,0.4180457]
[1765247263389,0.02712122,90363.0,90362.0,0.4180457]
[1765247264089,0.00110663,90365.0,90364.0,0.05839]
[1765247264389,0.038853,90384.0,90383.0,0.05839]
[1765247264587,0.066523,90384.0,90383.0,0.45839]
[1765247265995,0.066523,90384.0,90383.0,0.46139]
[1765247266691,0.066523,90384.0,90383.0,0.22139]
[1765247266894,0.083313,90384.0,90383.0,0.23293935]
[1765247267097,0.083313,90384.0,90383.0,0.46293935]
[1765247267398,0.083313,90384.0,90383.0,0.46393935]
[1765247271198,0.083313,90384.0,90383.0,0.21393935]
[1765247274594,0.083313,90384.0,90383.0,0.20239]
[1765247276309,0.10825396,90384.0,90383.0,0.20239]
[1765247280301,0.10825396,90384.0,90383.0,0.064]
[1765247280503,0.10825396,90384.0,90383.0,0.004]
[1765247280710,0.46825396,90384.0,90383.0,0.004]
[1765247281008,0.46825396,90384.0,90374.0,0.00016604]
[1765247281009,0.0833141,90375.0,90374.0,0.00016604]
[1765247281196,0.47825506,90375.0,90374.0,0.00016604]
[1765247281596,0.0679764,90356.0,90355.0,0.06847889]
[1765247281904,0.05691,90356.0,90355.0,0.44847889]
[1765247283103,0.05791,90356.0,90355.0,0.44847889]
[1765247283713,0.05991,90356.0,90355.0,0.44847889]
[1765247284209,0.05791,90356.0,90355.0,0.44847889]
[1765247284406,0.05791,90356.0,90355.0,0.12755]
[1765247284407,0.06091,90356.0,90355.0,0.12755]
[1765247284606,0.05691,90347.0,90346.0,0.05746604]
[1765247284806,0.05691,90347.0,90346.0,0.28746604]
[1765247285010,0.05691,90347.0,90346.0,0.06894719]
[1765247285504,0.05691,90347.0,90346.0,0.00016604]
[1765247286215,0.05691,90347.0,90346.0,0.05746604]
[1765247286416,0.05691,90347.0,90346.0,0.44746604]
[1765247286712,0.05691,90347.0,90346.0,0.16746604]
[1765247286913,0.05691,90347.0,90346.0,0.16946604]
[1765247287115,0.05791,90347.0,90346.0,0.16946604]
[1765247287422,0.001,90347.0,90346.0,0.45946604]
[1765247287598,0.0679765,90355.0,90354.0,0.0573]
[1765247288816,0.0719765,90355.0,90354.0,0.0573]
[1765247289202,0.0739765,90355.0,90354.0,0.0573]
[1765247290702,0.05691,90347.0,90346.0,0.05746604]
[1765247290901,0.05691,90347.0,90346.0,0.00016604]
[1765247291302,0.0679782,90341.0,90340.0,0.00110694]
[1765247291504,0.4079782,90341.0,90340.0,0.00110694]
[1765247291905,0.0852707,90321.0,90320.0,0.0573]
[1765247292105,0.0852707,90321.0,90320.0,0.3273]
[1765247292907,0.0742,90321.0,90320.0,0.3273]
[1765247293512,0.0752,90321.0,90320.0,0.3273]
[1765247294219,0.0762,90321.0,90320.0,0.3273]
[1765247294604,0.0752,90321.0,90320.0,0.3273]
[1765247294805,0.0762,90321.0,90320.0,0.3273]
[1765247295014,0.0752,90321.0,90320.0,0.3273]
[1765247295220,0.0752,90321.0,90320.0,0.0673]
[1765247295418,0.0752,90321.0,90320.0,0.0573]
[1765247296214,0.0685213,90316.0,90311.0,0.00016604]
[1765247297118,0.0685213,90316.0,90311.0,0.05855604]
[1765247297119,0.05745,90312.0,90311.0,0.05855604]
[1765247297321,0.05745,90312.0,90311.0,0.41855604]
[1765247297816,0.0390009,90320.0,90319.0,0.05839]
[1765247298023,0.0390004,90324.0,90323.0,0.05839]
[1765247298208,0.02793,90324.0,90323.0,0.47839]
[1765247299313,0.05745,90324.0,90323.0,0.47839]
[1765247299520,0.05745,90324.0,90323.0,0.20839]
[1765247300520,0.05945,90324.0,90323.0,0.0694604]
[1765247300714,0.05945,90324.0,90323.0,0.4494604]
[1765247300914,0.05745,90324.0,90323.0,0.4494604]
[1765247301114,0.05845,90324.0,90323.0,0.4494604]
[1765247301318,0.05945,90324.0,90323.0,0.4494604]
[1765247302215,0.05945,90324.0,90323.0,0.1894604]
[1765247302610,0.05945,90324.0,90323.0,0.0694604]
[1765247302816,0.05945,90324.0,90323.0,0.4394604]
[1765247304411,0.02993,90324.0,90323.0,0.4394604]
[1765247304911,0.05945,90324.0,90323.0,0.4394604]
[1765247310331,0.07597,90324.0,90323.0,0.02988]
[1765247310521,0.07597,90324.0,90311.0,0.05855604]
[1765247310522,0.0850418,90312.0,90311.0,0.05855604]
[1765247311037,0.0850418,90312.0,90311.0,0.03004604]
[1765247311330,0.0685218,90312.0,90311.0,0.40855604]
[1765247312027,0.0685218,90312.0,90311.0,0.40955604]
[1765247312832,0.0685218,90312.0,90311.0,0.41255604]
[1765247313238,0.0685218,90312.0,90311.0,0.40855604]
[1765247313239,0.05745,90312.0,90311.0,0.40855604]
[1765247313418,0.02793,90312.0,90311.0,0.41255604]
[1765247313622,0.05745,90312.0,90311.0,0.41255604]
[1765247314837,0.07397,90312.0,90311.0,0.41255604]
[1765247315031,0.0110717,90313.0,90312.0,0.0694618]
[1765247315226,0.0110717,90313.0,90312.0,0.4394618]
[1765247315227,0.0390017,90313.0,90312.0,0.4394618]
[1765247315426,0.0685217,90313.0,90312.0,0.4394618]
[1765247315628,0.05745,90313.0,90312.0,0.4394618]
[1765247316328,0.05745,90313.0,90312.0,0.4424618]
[1765247316521,0.05745,90313.0,90312.0,0.4494618]
[1765247316726,0.01652,90324.0,90316.0,0.0110711]
[1765247316727,0.0110712,90317.0,90316.0,0.0110711]
[1765247316926,0.0390012,90317.0,90316.0,0.0694611]
[1765247317139,0.0685212,90317.0,90316.0,0.0694611]
[1765247317638,0.02793,90324.0,90323.0,0.0694604]
[1765247317838,0.0390003,90324.0,90323.0,0.48839]
[1765247318040,0.0685203,90324.0,90323.0,0.20839]
[1765247318237,0.05745,90324.0,90323.0,0.48839]
[1765247318841,0.02793,90324.0,90323.0,0.48839]
[1765247319741,0.02893,90324.0,90323.0,0.48839]
[1765247319936,0.02993,90324.0,90323.0,0.48839]
[1765247321443,0.002,90324.0,90323.0,0.45839]
[1765247322348,0.001,90324.0,90323.0,0.45839]
[1765247322537,0.002,90324.0,90323.0,0.45839]
[1765247322745,0.001,90324.0,90323.0,0.45839]
[1765247323247,0.00110694,90340.0,90329.0,0.0677697]
[1765247323449,0.00110694,90340.0,90329.0,0.4977697]
[1765247323643,0.0110685,90339.0,90329.0,0.4977697]
[1765247324243,0.00110694,90340.0,90329.0,0.4977697]
[1765247325251,0.02814604,90330.0,90329.0,0.4977697]
[1765247325442,0.05614604,90330.0,90329.0,0.5017697]
[1765247325649,0.07382604,90330.0,90329.0,0.1817697]
[1765247325847,0.07382604,90330.0,90329.0,0.0717697]
[1765247326041,0.07382604,90330.0,90329.0,0.0446497]
[1765247326343,0.07382604,90330.0,90329.0,0.0717697]
[1765247327743,0.05614604,90330.0,90329.0,0.0717697]
[1765247328050,0.05614604,90330.0,90329.0,0.4217697]
[1765247330451,0.02814604,90330.0,90329.0,0.4217697]
[1765247330849,0.00016604,90330.0,90329.0,0.4217697]
[1765247332853,0.00110694,90340.0,90339.0,0.0677685]
[1765247333038,0.00110694,90340.0,90339.0,0.4177685]
[1765247334952,0.00110694,90340.0,90339.0,0.4197685]
[1765247335158,0.00110694,90340.0,90339.0,0.4247685]
[1765247336852,0.02908694,90340.0,90339.0,0.4247685]
[1765247337157,0.05708694,90340.0,90339.0,0.4247685]
[1765247339050,0.00110694,90340.0,90339.0,0.4247685]
[1765247340563,0.00016572,90349.0,90348.0,0.0677674]
[1765247340755,0.00016572,90349.0,90348.0,0.4777674]
[1765247341859,0.00016572,90349.0,90348.0,0.4974674]
[1765247342457,0.05622,90359.0,90358.0,0.0110661]
[1765247342664,0.05622,90359.0,90358.0,0.4280661]
[1765247343555,0.05732663,90365.0,90364.0,0.0680654]
[1765247343756,0.05732663,90365.0,90364.0,0.3580654]
[1765247344160,0.05732663,90365.0,90364.0,0.36959823]
[1765247344758,0.07039193,90365.0,90364.0,0.29]
[1765247344953,0.07139193,90365.0,90364.0,0.3010654]
[1765247345349,0.06939193,90365.0,90364.0,0.3309854]
[1765247345552,0.06939193,90365.0,90364.0,0.3600654]
[1765247345752,0.09341858,90365.0,90364.0,0.3600654]
[1765247346356,0.09341858,90365.0,90364.0,0.349]
[1765247346557,0.09341858,90365.0,90364.0,0.109]
[1765247346753,0.09241858,90365.0,90364.0,0.109]
[1765247347857,0.08135328,90365.0,90364.0,0.109]
[1765247348359,0.02513328,90365.0,90364.0,0.389]
[1765247348553,0.00110663,90365.0,90364.0,0.389]
[1765247348962,0.0110639,90377.0,90376.0,0.057]
[1765247349157,0.09131049,90377.0,90376.0,0.057]
[1765247349553,0.05296659,90377.0,90376.0,0.417]
[1765247349758,0.08024659,90377.0,90376.0,0.417]
[1765247350159,0.02502659,90377.0,90376.0,0.417]
[1765247350468,0.001,90377.0,90376.0,0.417]
[1765247350771,0.00110632,90390.0,90389.0,0.057]
[1765247351065,0.00110632,90390.0,90389.0,0.0680624]
[1765247351066,0.05405945,90390.0,90389.0,0.0680624]
[1765247351458,0.08133945,90390.0,90389.0,0.0680624]
[1765247352161,0.00110632,90390.0,90389.0,0.4390624]
[1765247352570,0.0672806,90404.0,90403.0,0.05691]
[1765247352758,0.08021296,90404.0,90403.0,0.05691]
[1765247354058,0.08421296,90404.0,90403.0,0.05691]
[1765247354460,0.08521296,90404.0,90403.0,0.05691]
[1765247354857,0.08521296,90404.0,90403.0,0.45691]
[1765247355062,0.06122,90404.0,90403.0,0.05691]
[1765247355871,0.03261,90404.0,90403.0,0.40691]
[1765247356064,0.06122,90404.0,90403.0,0.40691]
[1765247357070,0.06122,90404.0,90403.0,0.4179621]
[1765247357460,0.05622,90404.0,90403.0,0.4179621]
[1765247357660,0.05822,90404.0,90403.0,0.4179621]
[1765247357859,0.002,90404.0,90403.0,0.4179621]
[1765247358464,0.06838522,90415.0,90414.0,0.05691]
[1765247358659,0.06838522,90415.0,90414.0,0.42691]
[1765247358874,0.00110602,90415.0,90414.0,0.42691]
[1765247359373,0.05732602,90415.0,90414.0,0.42691]
[1765247360268,0.05832602,90415.0,90414.0,0.42691]
[1765247360576,0.06132602,90415.0,90414.0,0.02944]
[1765247360762,0.06132602,90415.0,90403.0,0.0110521]
[1765247360763,0.01749,90412.0,90405.0,0.0679703]
[1765247360963,0.05622,90406.0,90405.0,0.4679703]
[1765247362273,0.02761,90412.0,90411.0,0.0679697]
[1765247362473,0.02761,90412.0,90411.0,0.4679697]